bitfinex/quotes_SOLUSD_20250814
["timestamp","ask_amount","ask_price","bid_price","bid_amount"]
[1755178650378,18.30128007,194.8,194.72,41.10621557]
[1755178650691,18.30128007,194.73,194.66,0.03]
[1755178650897,18.30128007,194.67,194.66,0.03]
[1755178651071,18.30128007,194.68,194.67,46.32]
[1755178651269,0.72,194.72,194.66,0.03]
[1755178651589,18.30128007,194.69,194.67,46.32]
[1755178651900,19.02128007,194.68,194.66,0.03]
[1755178652205,19.66339236,194.67,194.64,0.03]
[1755178652381,0.72,194.66,194.65,46.32]
[1755178652554,0.72,194.66,194.58,36.94]
[1755178652761,26.0,194.7,194.58,36.94]
[1755178652762,0.72,194.7,194.58,36.94]
[1755178652963,18.30128007,194.66,194.59,15.78621557]
[1755178653166,18.30128007,194.67,194.6,5.13874614]
[1755178653395,0.72,194.7,194.61,15.10621557]
[1755178653586,0.72,194.75,194.65,15.10621557]
[1755178653790,18.30128007,194.74,194.67,15.10621557]
[1755178654091,18.30128007,194.76,194.67,26.0]
[1755178654267,0.06,194.81,194.72,15.10621557]
[1755178654464,18.30128007,194.79,194.74,15.10621557]
[1755178654682,0.06,194.81,194.74,15.10621557]
[1755178655265,0.06,194.81,194.76,15.10621557]
[1755178655493,0.06,194.81,194.76,15.78621557]
[1755178655661,0.06,194.81,194.78,15.10621557]
[1755178655863,0.06,194.83,194.8,15.10621557]
[1755178656197,0.06,194.83,194.82,41.10621557]
[1755178656367,0.06,194.83,194.82,46.3]
[1755178656568,0.06,194.83,194.82,88.08621557]
[1755178656881,1e-08,194.87,194.86,41.10621557]
[1755178657067,1e-08,194.87,194.86,78.72621557]
[1755178657263,1e-08,194.87,194.86,57.85810513]
[1755178657467,1e-08,194.87,194.86,104.65810513]
[1755178657666,1e-08,194.87,194.86,57.17810513]
[1755178657887,5.8482868,195.0,194.86,89.49188956]
[1755178658202,18.30128007,194.94,194.87,62.02621557]
[1755178658364,18.30128007,194.9,194.88,46.92]
[1755178658561,19.02128007,194.89,194.86,36.94]
[1755178658761,18.30128007,194.87,194.86,36.94]
[1755178658962,0.72,194.87,194.86,36.94]
[1755178659165,24.15290628,194.87,194.71,4.14231808]
[1755178659383,1.36148619,194.86,194.73,36.92]
[1755178659792,18.30128007,194.85,194.76,26.0]
[1755178659968,18.30128007,194.85,194.77,62.08621557]
[1755178660405,18.30128007,194.82,194.77,62.08621557]
[1755178660621,18.30128007,194.79,194.77,46.98]
[1755178660809,0.72,194.82,194.78,46.98]
[1755178661006,0.72,194.81,194.79,46.98]
[1755178661194,5.13373376,194.79,194.78,47.04]
[1755178661398,24.15501383,194.79,194.78,47.12]
[1755178661637,36.98934824,194.79,194.76,47.12]
[1755178661811,18.30128007,194.77,194.76,47.12]
[1755178662004,0.72,194.77,194.68,0.03]
[1755178662202,18.30128007,194.71,194.68,15.13621557]
[1755178662400,0.72,194.77,194.68,0.71]
[1755178662609,18.30128007,194.73,194.69,15.10621557]
[1755178662795,0.72,194.77,194.68,0.03]
[1755178663010,5.13373376,194.79,194.69,15.10621557]
[1755178663305,0.64148619,194.86,194.73,15.10621557]
[1755178663306,1.36148619,194.86,194.73,15.10621557]
[1755178663509,18.30128007,194.81,194.75,15.10621557]
[1755178663827,0.72,194.84,194.76,47.08]
[1755178664021,18.30128007,194.82,194.77,15.10621557]
[1755178664523,0.72,194.81,194.76,47.08]
[1755178664724,18.30128007,194.79,194.76,47.08]
[1755178665413,18.30128007,194.8,194.76,47.08]
[1755178665599,0.72,194.84,194.77,15.10621557]
[1755178665798,0.72,194.84,194.76,52.21449385]
[1755178666112,18.30128007,194.79,194.74,15.10621557]
[1755178666454,18.30128007,194.79,194.7,12.84025795]
[1755178666455,18.30128007,194.75,194.69,15.10621557]
[1755178666741,18.30128007,194.72,194.7,46.98]
[1755178667045,0.72,194.78,194.7,46.98]
[1755178667198,18.30128007,194.73,194.7,46.98]
[1755178667399,1.36168377,194.8,194.71,15.10621557]
[1755178667624,18.30128007,194.75,194.71,15.10621557]
[1755178667826,18.30128007,194.74,194.7,46.98]
[1755178668016,18.30128007,194.71,194.68,0.03]
[1755178668217,18.30128007,194.71,194.69,46.92]
[1755178668218,0.72,194.71,194.69,46.92]
[1755178668422,18.30128007,194.7,194.69,46.92]
[1755178669132,0.72,194.76,194.69,46.92]
[1755178669429,0.64174966,194.78,194.69,52.05636502]
[1755178669430,5.13399733,194.78,194.69,52.05636502]
[1755178669613,18.30128007,194.73,194.69,46.92]
[1755178669925,5.13399733,194.78,194.69,46.92]
[1755178670244,18.30128007,194.7,194.69,46.92]
[1755178670445,18.30128007,194.7,194.69,46.8]
[1755178670635,19.02128007,194.7,194.69,46.8]
[1755178671226,18.30128007,194.7,194.69,46.8]
[1755178671634,19.02128007,194.7,194.69,46.8]
[1755178672746,18.30128007,194.7,194.69,46.8]
[1755178672922,5.85531523,194.74,194.69,46.8]
[1755178673121,18.30128007,194.7,194.69,46.8]
[1755178673526,5.13504156,194.75,194.69,46.8]
[1755178673755,18.30128007,194.7,194.69,46.8]
[1755178674450,18.30128007,194.72,194.69,46.8]
[1755178674755,18.30128007,194.72,194.68,0.03]
[1755178674756,18.30128007,194.7,194.68,0.03]
[1755178674934,18.30128007,194.69,194.68,0.03]
[1755178675134,0.72,194.69,194.68,46.65]
[1755178675334,23.43765071,194.69,194.68,46.65]
[1755178675540,24.15765071,194.69,194.68,46.65]
[1755178675743,24.15765071,194.69,194.67,0.03]
[1755178675938,19.02128007,194.68,194.67,0.03]
[1755178676829,19.02128007,194.68,194.65,0.03]
[1755178676830,19.66335937,194.68,194.65,0.03]
[1755178677058,0.72,194.67,194.66,46.58]
[1755178677246,24.15817841,194.67,194.66,46.58]
[1755178677631,24.15817841,194.67,194.58,36.92]
[1755178677954,0.64214527,194.66,194.59,46.6]
[1755178678156,26.0,194.71,194.59,46.6]
[1755178678354,0.64201335,194.7,194.59,46.6]
[1755178678847,18.30128007,194.61,194.59,47.28]
[1755178679160,18.30128007,194.62,194.6,0.68]
[1755178679347,5.77812018,194.7,194.61,0.68]
[1755178679537,18.30128007,194.62,194.58,36.92]
[1755178679859,18.30128007,194.61,194.59,47.14]
[1755178680047,0.72,194.67,194.59,46.46]
[1755178680358,25.67639697,194.74,194.59,46.46]
[1755178680359,0.64191444,194.73,194.6,15.78621557]
[1755178680528,18.30128007,194.76,194.68,15.10621557]
[1755178680734,0.06,194.78,194.7,15.10621557]
[1755178680735,18.30128007,194.73,194.7,15.10621557]
[1755178681063,0.06,194.78,194.71,15.10621557]
[1755178681356,18.30128007,194.72,194.68,5.13644689]
[1755178681552,0.70174966,194.78,194.63,0.5137954]
[1755178681553,18.30128007,194.69,194.64,15.78621557]
[1755178681859,0.72,194.75,194.65,47.2]
[1755178682045,18.30128007,194.71,194.66,15.10621557]
[1755178682353,1.36178261,194.77,194.67,0.68]
[1755178682656,18.30128007,194.68,194.58,36.92]
[1755178682869,0.72,194.67,194.59,46.52]
[1755178683370,18.30128007,194.6,194.58,36.92]
[1755178683557,18.30128007,194.59,194.58,36.92]
[1755178683762,0.64217826,194.65,194.58,83.44]
[1755178683980,5.13716223,194.66,194.59,15.10621557]
[1755178684177,18.30128007,194.6,194.58,83.44]
[1755178684351,0.72,194.67,194.58,83.44]
[1755178684543,18.30128007,194.59,194.58,83.44]
[1755178685045,19.02128007,194.59,194.58,83.46]
[1755178685294,18.30128007,194.59,194.58,83.46]
[1755178685596,12.84313742,194.66,194.58,83.52]
[1755178685800,5.13584304,194.71,194.59,16.30011659]
[1755178685966,18.30128007,194.66,194.61,15.10621557]
[1755178686160,18.30128007,194.66,194.63,15.10621557]
[1755178686503,12.843138,194.81,194.63,15.10621557]
[1755178686504,0.70174966,194.78,194.65,15.10621557]
[1755178686687,0.06,194.78,194.69,15.10621557]
[1755178686885,18.30128007,194.76,194.71,15.10621557]
[1755178687064,0.06,194.78,194.73,15.10621557]
[1755178687267,0.06,194.78,194.75,30.56621557]
[1755178687482,0.06,194.82,194.77,30.56621557]
[1755178687664,0.06,194.84,194.79,30.56621557]
[1755178687867,0.06,194.84,194.81,15.10621557]
[1755178688091,18.36128007,194.84,194.78,36.94]
[1755178688280,18.36128007,194.84,194.79,0.68]
[1755178688281,0.06,194.84,194.79,0.68]
[1755178688489,18.30128007,194.8,194.78,36.94]
[1755178688807,0.06,194.84,194.61,63.05833202]
[1755178688808,19.66299679,194.79,194.66,0.68]
[1755178689003,0.72,194.79,194.68,0.13]
[1755178689310,1.42155204,194.84,194.69,15.78621557]
[1755178689479,18.30128007,194.75,194.69,15.78621557]
[1755178689803,5.13267977,194.83,194.69,0.68]
[1755178689804,18.30128007,194.71,194.69,0.68]
[1755178690009,0.6416179,194.82,194.67,46.56]
[1755178690010,18.30128007,194.7,194.67,46.56]
[1755178690186,0.72,194.78,194.67,46.56]
[1755178690187,18.30128007,194.69,194.67,46.56]
[1755178690420,18.30128007,194.68,194.65,37.62]
[1755178690733,0.64184852,194.75,194.66,46.54]
[1755178691026,18.30128007,194.67,194.66,46.54]
[1755178691240,0.64188148,194.74,194.66,46.54]
[1755178691452,0.64188148,194.74,194.65,36.94]
[1755178691633,6.49723,194.73,194.66,46.52]
[1755178691804,18.30128007,194.67,194.66,46.52]
[1755178692005,5.13531556,194.73,194.66,46.52]
[1755178692303,18.30128007,194.69,194.66,47.2]
[1755178692499,18.30128007,194.7,194.67,15.10621557]
[1755178692718,10.06,194.84,194.69,15.10621557]
[1755178692719,18.30128007,194.74,194.69,15.10621557]
[1755178692930,18.30128007,194.78,194.71,15.10621557]
[1755178693103,18.30128007,194.74,194.72,46.58]
[1755178693310,18.30128007,194.75,194.73,46.54]
[1755178693635,18.30128007,194.76,194.74,15.10621557]
[1755178693803,18.30128007,194.78,194.75,0.68]
[1755178694022,0.06,194.82,194.76,1.19345245]
[1755178694233,0.06,194.82,194.78,15.10621557]
[1755178694534,0.06,194.82,194.8,15.10621557]
[1755178694708,0.06,194.82,194.81,15.78621557]
[1755178695117,0.06,194.84,194.82,15.10621557]
[1755178695319,0.06,194.84,194.83,15.78621557]
[1755178695525,1e-08,194.84,194.83,51.91889534]
[1755178695724,10.0,195.01,194.83,51.91889534]
[1755178695725,18.30128007,194.92,194.84,46.10621557]
[1755178695897,0.72,194.97,194.85,36.94]
[1755178696105,18.30128007,194.91,194.87,15.10621557]
[1755178696321,5.84820512,195.0,194.89,15.10621557]
[1755178696529,18.30128007,194.94,194.89,15.10621557]
[1755178696717,23.85607275,194.9,194.85,37.62]
[1755178697012,0.72,194.95,194.87,15.10621557]
[1755178697411,23.85607275,194.9,194.87,15.10621557]
[1755178697739,23.85607275,194.88,194.85,36.94]
[1755178697941,23.85607275,194.87,194.85,36.94]
[1755178698111,5.12952038,194.95,194.86,62.18621557]
[1755178698315,23.85607275,194.9,194.86,62.18621557]
[1755178698523,23.85607275,194.88,194.86,15.10621557]
[1755178698720,6.49037546,194.97,194.87,46.38]
[1755178698924,23.85607275,194.88,194.87,46.38]
[1755178699134,23.85607275,194.88,194.87,46.36]
[1755178699338,23.85607275,194.88,194.85,36.94]
[1755178699542,23.85607275,194.86,194.85,52.04621557]
[1755178699749,17.95578416,194.93,194.85,98.38621557]
[1755178699915,23.85607275,194.86,194.85,98.38621557]
[1755178700557,1.36128873,194.92,194.85,83.28]
[1755178700848,5.13004668,194.93,194.86,15.10621557]
[1755178701041,23.85607275,194.89,194.85,83.96]
[1755178701210,5.13004668,194.93,194.85,98.38621557]
[1755178701415,23.85607275,194.86,194.85,98.38621557]
[1755178701728,23.85607275,194.87,194.85,98.38621557]
[1755178701924,17.95516338,194.93,194.86,0.68]
[1755178702128,23.85607275,194.89,194.87,15.10621557]
[1755178702325,5.13004668,194.93,194.87,15.10621557]
[1755178702532,23.85607275,194.88,194.87,15.10621557]
[1755178702846,23.85607275,194.88,194.85,36.94]
[1755178703019,23.85607275,194.86,194.85,36.94]
[1755178703215,17.95516338,194.93,194.85,36.94]
[1755178703216,26.72,194.9,194.85,36.94]
[1755178703518,5.13057308,194.91,194.86,46.32]
[1755178704063,23.85607275,194.87,194.86,46.32]
[1755178704956,23.85607275,194.87,194.86,62.10621557]
[1755178705123,23.85607275,194.87,194.86,46.32]
[1755178705337,5.13057308,194.91,194.86,46.72]
[1755178705541,5.13135581,194.89,194.86,46.72]
[1755178705780,5.12952038,194.95,194.87,15.78621557]
[1755178705942,23.85607275,194.88,194.87,15.10621557]
[1755178706141,0.72,194.99,194.87,15.78621557]
[1755178706351,23.85607275,194.92,194.89,15.10621557]
[1755178706546,23.85607275,194.9,194.89,15.10621557]
[1755178706760,23.85607275,194.9,194.89,61.84621557]
[1755178707763,23.85607275,194.9,194.85,36.94]
[1755178707967,0.64112427,194.97,194.86,61.74621557]
[1755178708163,23.85607275,194.91,194.88,15.10621557]
[1755178708468,23.85607275,194.89,194.88,15.10621557]
[1755178708667,23.85607275,194.91,194.88,0.68]
[1755178708875,215.1,195.02,194.89,15.78621557]
[1755178709042,215.1,195.09,194.95,15.10621557]
[1755178709235,215.1,195.09,194.94,26.0]
[1755178709236,0.72,195.09,194.97,15.10621557]
[1755178709563,0.72,195.13,195.0,15.10621557]
[1755178709864,0.72,195.13,194.97,4.13933954]
[1755178709865,26.0,195.1,195.01,46.66]
[1755178710036,44.6567601,195.13,194.97,5.80895972]
[1755178710037,23.85607275,195.02,194.98,15.10621557]
[1755178710233,23.85607275,195.01,195.0,15.10621557]
[1755178710539,23.85607275,195.01,195.0,15.78621557]
[1755178710747,23.85607275,195.01,194.97,0.68]
[1755178710948,23.85607275,194.98,194.89,15.376336]
[1755178711262,23.85607275,194.9,194.85,37.62]
[1755178711460,17.95240048,194.96,194.86,0.68]
[1755178711668,23.85607275,194.89,194.87,46.76]
[1755178711845,23.85607275,194.88,194.86,0.68]
[1755178712050,5.12925728,194.96,194.87,46.74]
[1755178712255,0.7,195.04,194.91,15.10621557]
[1755178712460,23.85607275,194.96,194.93,15.10621557]
[1755178712661,5.12741629,195.03,194.94,46.68]
[1755178712837,23.85607275,194.99,194.95,15.10621557]
[1755178713039,23.85607275,194.96,194.91,0.5130573]
[1755178713340,23.85607275,194.92,194.85,42.07205581]
[1755178713540,23.85607275,194.9,194.88,15.10621557]
[1755178713742,23.85607275,194.89,194.87,15.10621557]
[1755178714046,23.85607275,194.88,194.86,5.13188956]
[1755178714454,23.85607275,194.9,194.87,47.28]
[1755178714652,0.6409599,195.02,194.88,16.29935185]
[1755178714852,23.85607275,194.98,194.9,26.0]
[1755178715165,23.85607275,194.97,194.91,88.17927287]
[1755178715366,23.85607275,194.98,194.91,88.17927287]
[1755178715542,1.34086131,195.05,194.91,88.17927287]
[1755178715543,23.85607275,194.96,194.92,5.13030987]
[1755178715740,23.85607275,194.95,194.9,15.10621557]
[1755178716046,0.64079561,195.07,194.96,15.10621557]
[1755178716254,0.7,195.08,194.98,15.10621557]
[1755178716456,23.85607275,195.05,195.0,15.10621557]
[1755178716658,18.15978985,195.06,195.02,15.10621557]
[1755178716865,18.15978985,195.07,195.02,15.78621557]
[1755178717063,18.15978985,195.07,194.91,100.26271454]
[1755178717064,18.15978985,195.03,194.81,15.384221]
[1755178717241,36.0,194.91,194.83,0.13]
[1755178717441,23.29220619,194.84,194.83,0.13]
[1755178717775,40.55459492,194.84,194.7,15.384221]
[1755178717958,18.15978985,194.79,194.65,0.68]
[1755178718161,22.58961316,194.79,194.69,5.1363598]
[1755178718474,22.58961316,194.79,194.66,5.13714918]
[1755178718679,28.3451025,194.79,194.65,0.68]
[1755178718973,28.3451025,194.79,194.77,46.42]
[1755178719481,26.0,194.75,194.63,0.03]
[1755178719648,23.91527919,194.64,194.63,0.03]
[1755178719847,27.64019629,194.64,194.63,0.03]
[1755178720066,24.61527919,194.64,194.63,46.39]
[1755178720447,27.63704016,194.64,194.63,46.39]
[1755178720848,3.72272001,194.64,194.63,46.39]
[1755178721157,23.91527919,194.64,194.63,46.39]
[1755178721353,27.6379992,194.64,194.63,46.39]
[1755178721546,3.72272001,194.64,194.63,46.39]
[1755178721749,27.63977812,194.64,194.63,46.39]
[1755178722045,3.72449893,194.64,194.63,46.39]
[1755178722267,23.91527919,194.64,194.63,46.39]
[1755178722576,5.13795406,194.63,194.56,0.03]
[1755178722780,28.9810947,194.62,194.56,0.03]
[1755178723462,28.98065714,194.62,194.56,0.03]
[1755178723652,23.91527919,194.57,194.56,0.03]
[1755178723846,27.63837989,194.57,194.56,46.61]
[1755178724066,13.54392975,194.65,194.56,46.61]
[1755178724272,23.91527919,194.6,194.56,46.61]
[1755178724468,5.13769009,194.64,194.57,0.68]
[1755178724758,27.63932659,194.63,194.58,15.10621557]
[1755178724970,5.13685544,194.68,194.6,15.10621557]
[1755178725154,23.91527919,194.66,194.6,15.10621557]
[1755178725361,27.63866395,194.65,194.6,15.10621557]
[1755178725563,0.64184852,194.75,194.63,15.10621557]
[1755178725766,23.91527919,194.69,194.65,15.10621557]
[1755178725967,23.91527919,194.71,194.66,0.68]
[1755178726171,23.91527919,194.7,194.65,15.10621557]
[1755178726382,6.47606926,194.77,194.65,15.10621557]
[1755178726383,23.91527919,194.69,194.66,0.68]
[1755178726591,0.64171672,194.79,194.68,15.10621557]
[1755178726891,3.72628326,194.78,194.7,15.10621557]
[1755178727185,5.83277803,194.83,194.72,15.10621557]
[1755178727186,23.91527919,194.76,194.72,15.10621557]
[1755178727357,23.91527919,194.73,194.69,0.68]
[1755178727555,23.91527919,194.73,194.66,36.94]
[1755178727556,23.91527919,194.71,194.7,46.38]
[1755178727757,23.91527919,194.73,194.7,46.38]
[1755178727976,5.83370331,194.8,194.66,36.94]
[1755178727977,23.91527919,194.71,194.66,36.94]
[1755178728202,23.91527919,194.67,194.66,36.94]
[1755178728504,23.91527919,194.67,194.56,0.14944346]
[1755178728505,28.34074213,194.67,194.56,0.03]
[1755178728683,23.91527919,194.57,194.56,0.03]
[1755178728892,24.61527919,194.57,194.56,0.03]
[1755178729198,28.34045111,194.57,194.5,0.03]
[1755178729367,23.91527919,194.51,194.5,0.03]
[1755178729572,33.4814781,194.51,194.5,0.03]
[1755178729768,33.4814781,194.51,194.49,0.2]
[1755178729992,28.98302778,194.5,194.49,0.2]
[1755178730972,28.98302778,194.5,194.49,1e-08]
[1755178731704,34.12441595,194.5,194.49,1e-08]
[1755178731911,26.0,194.43,194.34,36.94]
[1755178732072,4.36801303,194.42,194.37,46.38]
[1755178732272,23.91527919,194.38,194.37,46.38]
[1755178732580,27.64035426,194.38,194.37,46.38]
[1755178733397,28.31705056,194.38,194.37,46.38]
[1755178733604,27.61705056,194.38,194.37,46.38]
[1755178734176,27.61705056,194.38,194.34,36.94]
[1755178734376,23.91527919,194.35,194.34,36.94]
[1755178734601,23.91527919,194.35,194.34,83.32]
[1755178734799,0.64303719,194.39,194.34,83.32]
[1755178735101,23.91527919,194.35,194.34,83.32]
[1755178735282,28.30918336,194.35,194.33,46.4]
[1755178735491,3.69390417,194.34,194.33,46.4]
[1755178735697,23.91527919,194.34,194.33,46.4]
[1755178735936,27.60943441,194.34,194.32,0.2]
[1755178736096,0.64307027,194.38,194.33,47.08]
[1755178736301,0.64287183,194.44,194.34,0.68]
[1755178736489,3.6907836,194.43,194.34,0.68]
[1755178736821,0.64293796,194.42,194.34,0.68]
[1755178737029,23.91527919,194.38,194.34,0.68]
[1755178737216,23.91527919,194.38,194.35,0.68]
[1755178737394,23.91527919,194.4,194.36,0.68]
[1755178737594,23.91527919,194.39,194.36,0.68]
[1755178737815,23.91527919,194.4,194.37,0.68]
[1755178738014,0.64287183,194.44,194.37,0.68]
[1755178738395,23.91527919,194.42,194.37,0.68]
[1755178738717,23.91527919,194.4,194.36,5.14484692]
[1755178738892,23.91527919,194.4,194.36,5.82484692]
[1755178739093,23.91527919,194.38,194.34,5.14538279]
[1755178739316,5.78584868,194.44,194.35,46.4]
[1755178739523,23.91527919,194.38,194.35,46.4]
[1755178739829,0.7,194.43,194.36,46.4]
[1755178740119,38.85577301,194.47,194.35,0.68]
[1755178740120,23.91527919,194.41,194.35,0.68]
[1755178740320,23.91527919,194.41,194.32,0.2]
[1755178740321,23.91527919,194.36,194.32,0.2]
[1755178740501,23.91527919,194.33,194.32,0.2]
[1755178740700,29.06116505,194.33,194.32,46.6]
[1755178740912,29.73116505,194.33,194.32,46.6]
[1755178741098,23.91527919,194.33,194.32,46.6]
[1755178741521,29.70440078,194.33,194.32,46.6]
[1755178741725,30.37440078,194.33,194.32,46.6]
[1755178741914,25.22851492,194.33,194.32,0.2]
[1755178742112,25.22851492,194.33,194.19,0.03]
[1755178742113,26.0,194.22,194.19,0.03]
[1755178742297,50.58527919,194.22,194.19,0.03]
[1755178742496,0.67,194.27,194.2,46.48]
[1755178742818,23.91527919,194.21,194.19,0.03]
[1755178743025,24.55894551,194.2,194.19,0.03]
[1755178743198,25.22894551,194.2,194.19,0.03]
[1755178743403,24.55894551,194.2,194.19,0.03]
[1755178743907,25.22894551,194.2,194.19,0.03]
[1755178744502,26.0,194.17,194.12,46.52]
[1755178744719,15.10621557,194.26,193.98,36.98]
[1755178744720,5.15224895,194.09,194.03,0.67]
[1755178744918,23.91527919,194.04,193.99,0.67]
[1755178745230,0.64403111,194.09,194.0,0.67]
[1755178745617,23.91527919,194.08,194.0,0.67]
[1755178745928,23.91527919,194.05,194.0,0.67]
[1755178746114,23.91527919,194.02,194.01,0.67]
[1755178746317,23.91527919,194.02,193.99,46.46]
[1755178746496,23.91527919,194.0,193.92,0.67]
[1755178746698,23.91527919,193.96,193.93,46.52]
[1755178746901,0.64426347,194.02,193.94,5.82623388]
[1755178747329,0.64393158,194.12,193.96,15.10621557]
[1755178747531,0.64393158,194.12,193.95,0.67]
[1755178747532,26.0,194.08,193.98,15.10621557]
[1755178747725,17.7259753,194.14,193.98,15.10621557]
[1755178747726,0.64403111,194.09,194.0,15.10621557]
[1755178748028,0.64403111,194.09,193.98,15.10621557]
[1755178748029,23.91527919,194.09,194.02,15.10621557]
[1755178748341,23.91527919,194.15,194.06,15.10621557]
[1755178748640,10.0,194.31,194.03,37.8135516]
[1755178748641,0.64346751,194.26,194.17,26.0]
[1755178748822,79.6,194.5,194.07,0.79322605]
[1755178748823,23.91527919,194.29,194.23,15.10621557]
[1755178749012,1.31307027,194.38,194.24,47.23]
[1755178749215,0.64307027,194.38,194.28,26.0]
[1755178749412,0.64303719,194.39,194.29,15.77621557]
[1755178749614,0.67,194.45,194.29,15.77621557]
[1755178749615,23.91527919,194.34,194.3,46.54]
[1755178749918,23.91527919,194.33,194.31,61.66621557]
[1755178750131,23.91527919,194.32,194.25,37.02]
[1755178750312,0.64307027,194.38,194.26,61.64621557]
[1755178750527,23.91527919,194.27,194.25,37.02]
[1755178750833,24.5587467,194.26,194.25,37.02]
[1755178751035,23.91527919,194.26,194.25,83.56]
[1755178751256,29.06301933,194.26,194.25,83.56]
[1755178751968,5.14774014,194.26,194.25,83.56]
[1755178752328,41.93236968,194.26,194.16,15.10621557]
[1755178752638,23.91527919,194.17,194.13,37.02]
[1755178752951,23.91527919,194.14,194.13,37.02]
[1755178753162,18.02172905,194.21,194.13,37.02]
[1755178753324,29.06434463,194.21,194.14,15.10621557]
[1755178753529,23.91527919,194.19,194.16,15.10621557]
[1755178753948,5.14906544,194.21,194.16,15.77621557]
[1755178753949,23.91527919,194.18,194.16,15.77621557]
[1755178754422,23.91527919,194.19,194.16,15.77621557]
[1755178754851,5.14906544,194.21,194.15,46.46]
[1755178754852,5.15039142,194.16,194.15,46.46]
[1755178755130,12.87266361,194.21,194.16,15.10621557]
[1755178755452,0.64346751,194.26,194.18,15.10621557]
[1755178755453,12.87062215,194.25,194.18,15.10621557]
[1755178755630,23.91527919,194.19,194.13,37.05]
[1755178755834,23.91527919,194.14,194.07,0.67]
[1755178756142,23.91527919,194.08,194.07,0.67]
[1755178756328,23.91527919,194.08,194.07,47.13]
[1755178756650,23.91527919,194.08,194.07,46.46]
[1755178756850,29.06779361,194.08,194.07,46.46]
[1755178757971,29.06779361,194.08,193.94,0.67]
[1755178757972,26.0,194.05,193.94,0.67]
[1755178758142,23.91527919,194.0,193.94,0.67]
[1755178758468,23.91527919,194.04,193.94,26.67]
[1755178758646,23.91527919,194.02,193.95,0.67]
[1755178758833,0.64409749,194.07,193.96,15.10621557]
[1755178759035,23.91527919,194.02,193.98,15.10621557]
[1755178759353,5.15304544,194.06,194.0,15.10621557]
[1755178759547,23.91527919,194.05,194.0,15.10621557]
[1755178759859,5.15304544,194.06,194.0,0.67]
[1755178760160,23.91527919,194.01,193.96,15.10621557]
[1755178760364,0.64432989,194.0,193.96,0.67]
[1755178760561,23.91527919,193.97,193.92,0.67]
[1755178760767,0.64446277,193.96,193.92,0.67]
[1755178760938,26.67,194.03,193.92,0.67]
[1755178760939,23.91527919,193.93,193.92,0.67]
[1755178761140,23.91527919,193.98,193.92,47.15]
[1755178761340,23.91527919,193.99,193.93,15.10621557]
[1755178761539,23.91527919,193.96,193.92,0.67]
[1755178761767,23.91527919,193.94,193.93,46.48]
[1755178762857,29.07151307,193.94,193.93,46.48]
[1755178763062,5.15623388,193.94,193.93,46.48]
[1755178763260,29.07151307,193.94,193.93,46.48]
[1755178763640,23.91527919,193.94,193.93,46.48]
[1755178763878,23.91527919,193.94,193.85,63.74]
[1755178764051,23.91527919,193.89,193.85,37.74]
[1755178764384,18.04402741,193.97,193.87,15.10621557]
[1755178764385,23.91527919,193.92,193.87,15.10621557]
[1755178764685,5.1554364,193.97,193.89,15.10621557]
[1755178764981,23.91527919,193.91,193.88,0.67]
[1755178765149,23.91527919,193.93,193.89,15.77621557]
[1755178765336,5.15517063,193.98,193.91,15.10621557]
[1755178765536,12.88636458,194.01,193.9,0.67]
[1755178765537,23.91527919,194.01,193.93,15.10621557]
[1755178765766,29.06973948,194.01,193.95,15.10621557]
[1755178765951,23.91527919,194.0,193.95,15.10621557]
[1755178766265,23.91527919,194.0,193.92,46.5]
[1755178766266,23.91527919,194.03,193.97,15.10621557]
[1755178766451,0.64426347,194.02,193.98,46.5]
[1755178766646,0.67,194.06,193.98,46.5]
[1755178766647,23.91527919,193.99,193.98,46.5]
[1755178767669,29.71454719,193.99,193.89,26.0]
[1755178767841,23.91527919,193.94,193.9,61.60621557]
[1755178768044,5.799268,193.99,193.9,62.27621557]